bitfinex/quotes_BTCUSD_20210402
["timestamp","ask_amount","ask_price","bid_price","bid_amount"]
[1617347567681,13.50588942,59600.0,59599.0,0.6741996]
[1617347567882,13.50391577,59600.0,59599.0,0.6741996]
[1617347568279,13.13937203,59600.0,59599.0,0.6741996]
[1617347568486,13.50391577,59600.0,59599.0,0.6741996]
[1617347569489,13.34891577,59600.0,59599.0,0.6741996]
[1617347570089,13.54686174,59600.0,59599.0,0.6741996]
[1617347570688,13.34891577,59600.0,59599.0,0.6741996]
[1617347571114,13.34891577,59600.0,59599.0,0.6791996]
[1617347571320,13.56986781,59600.0,59599.0,0.6791996]
[1617347571520,13.878881,59600.0,59599.0,0.6791996]
[1617347572517,13.68093503,59600.0,59599.0,0.6791996]
[1617347572718,13.878881,59600.0,59599.0,0.6791996]
[1617347573118,13.68093503,59600.0,59599.0,0.6791996]
[1617347573319,13.29437203,59600.0,59599.0,0.6791996]
[1617347573941,13.65891577,59600.0,59599.0,0.6791996]
[1617347574140,13.29437203,59600.0,59599.0,0.6791996]
[1617347574340,13.65891577,59600.0,59599.0,0.6791996]
[1617347575342,13.85686174,59600.0,59599.0,0.6791996]
[1617347575742,14.24342474,59600.0,59599.0,0.6791996]
[1617347575948,13.66088996,59600.0,59599.0,0.6791996]
[1617347576144,13.85883593,59600.0,59599.0,0.6791996]
[1617347576375,13.65891577,59600.0,59599.0,0.6791996]
[1617347576573,13.2963462,59600.0,59599.0,0.6791996]
[1617347576808,13.85883591,59600.0,59599.0,0.6791996]
[1617347577604,14.24539891,59600.0,59599.0,0.6791996]
[1617347578208,14.40739891,59600.0,59599.0,0.6791996]
[1617347578409,14.40838603,59600.0,59599.0,0.6791996]
[1617347578601,14.40542474,59600.0,59599.0,0.6791996]
[1617347578806,14.24342474,59600.0,59599.0,0.6791996]
[1617347579209,14.24342474,59600.0,59577.0,1.0]
[1617347579210,6.22799175,59578.0,59577.0,1.0]
[1617347579408,6.16799175,59578.0,59577.0,1.03]
[1617347579610,6.16799175,59578.0,59577.0,1.05956558]
[1617347579807,6.16799175,59578.0,59577.0,1.40156558]
[1617347580207,6.16799175,59578.0,59577.0,1.73722858]
[1617347580806,6.16799175,59578.0,59577.0,2.40862858]
[1617347582117,6.16799175,59578.0,59577.0,3.65862858]
[1617347582520,6.16799175,59578.0,59577.0,2.40862858]
[1617347582721,6.16799175,59578.0,59577.0,2.40762858]
[1617347583519,0.00098714,59586.0,59585.0,0.03]
[1617347583724,0.00098714,59586.0,59585.0,0.416563]
[1617347583919,0.00098714,59586.0,59585.0,0.418563]
[1617347584350,0.00098716,59587.0,59585.0,0.418563]
[1617347584549,0.00098716,59587.0,59586.0,0.218823]
[1617347584753,0.00098716,59587.0,59586.0,0.270823]
[1617347585354,0.00098712,59588.0,59586.0,0.270823]
[1617347585555,0.9168,59598.0,59588.0,0.002]
[1617347585755,0.9168,59598.0,59597.0,0.03]
[1617347585950,2.163363,59598.0,59597.0,0.032]
[1617347586150,2.473363,59598.0,59597.0,0.032]
[1617347586349,0.696563,59598.0,59597.0,0.032]
[1617347586974,1.686563,59598.0,59597.0,0.032]
[1617347587773,0.31,59598.0,59597.0,0.032]
[1617347587983,0.83945008,59600.0,59597.0,0.032]
[1617347588179,0.83945008,59600.0,59597.0,0.002]
[1617347588378,0.99791086,59600.0,59599.0,0.03]
[1617347588579,1.38447386,59600.0,59599.0,0.032]
[1617347588779,1.59447386,59600.0,59599.0,0.032]
[1617347588984,1.39652789,59600.0,59599.0,0.032]
[1617347589178,1.00996489,59600.0,59599.0,0.032]
[1617347589380,1.38447386,59600.0,59599.0,0.032]
[1617347590203,0.79996489,59600.0,59599.0,0.032]
[1617347592538,0.99791086,59600.0,59599.0,0.032]
[1617347592937,0.79996489,59600.0,59599.0,0.032]
[1617347594548,0.79996489,59600.0,59599.0,0.26587356]
[1617347594758,0.79996489,59600.0,59599.0,0.84243656]
[1617347595358,0.79996489,59600.0,59599.0,1.51383656]
[1617347595555,0.79996489,59600.0,59599.0,2.51383656]
[1617347595960,0.79996489,59600.0,59599.0,2.68383656]
[1617347596960,0.79996489,59600.0,59599.0,2.89683656]
[1617347597160,0.79996489,59600.0,59599.0,3.3520018]
[1617347597385,0.79996489,59600.0,59599.0,4.2020018]
[1617347597583,0.79996489,59600.0,59599.0,4.2520018]
[1617347597786,0.79996489,59600.0,59599.0,4.3520018]
[1617347598387,0.79996489,59600.0,59599.0,3.67683656]
[1617347598585,0.79996489,59600.0,59599.0,3.88683656]
[1617347598985,0.79996489,59600.0,59599.0,3.84683656]
[1617347599584,0.79996489,59600.0,59599.0,3.88683656]
[1617347599792,0.79996489,59600.0,59599.0,3.98683656]
[1617347600402,0.79996489,59600.0,59599.0,3.81683656]
[1617347601408,0.79996489,59600.0,59599.0,2.88383656]
[1617347601807,0.79996489,59600.0,59599.0,3.88383656]
[1617347602007,0.79996489,59600.0,59599.0,2.88383656]
[1617347602408,0.79996489,59600.0,59599.0,3.88383656]
[1617347602642,0.78996489,59600.0,59599.0,4.58383656]
[1617347602841,0.69229806,59600.0,59599.0,5.49859294]
[1617347603046,0.17268,59634.0,59601.0,0.0028]
[1617347603241,0.17268,59634.0,59633.0,0.15691531]
[1617347603439,0.17268,59634.0,59633.0,0.62105531]
[1617347603641,0.17268,59634.0,59633.0,1.70901831]
[1617347603838,0.17268,59634.0,59633.0,1.552103]
[1617347604033,0.17268,59634.0,59633.0,1.817103]
[1617347604237,0.17268,59634.0,59633.0,2.317103]
[1617347607315,0.17268,59634.0,59633.0,1.817103]
[1617347608513,0.17268,59634.0,59633.0,2.317103]
[1617347608918,0.16768,59634.0,59633.0,2.317103]
[1617347609919,0.16841276,59634.0,59633.0,2.317103]
[1617347610719,0.16841276,59634.0,59633.0,1.93054]
[1617347612118,0.16841276,59634.0,59633.0,0.9664]
[1617347612317,0.16841276,59634.0,59633.0,0.7014]
[1617347612518,0.16841276,59634.0,59633.0,1.2014]
[1617347613929,0.16841276,59634.0,59633.0,1.822963]
[1617347615131,0.16841276,59634.0,59633.0,1.4364]
[1617347615756,1.47041276,59634.0,59633.0,1.4064]
[1617347615968,2.20492173,59634.0,59633.0,1.1714]
[1617347616165,2.20492173,59634.0,59633.0,0.6714]
[1617347616166,2.24492173,59634.0,59633.0,0.6714]
[1617347616361,2.53492173,59634.0,59633.0,0.6714]
[1617347616553,2.49492173,59634.0,59633.0,0.6714]
[1617347616757,3.63492173,59634.0,59633.0,0.6714]
[1617347617164,4.28946547,59634.0,59633.0,0.6714]
[1617347617359,4.03946547,59634.0,59633.0,0.6714]
[1617347618154,4.58946547,59634.0,59633.0,0.6714]
[1617347618577,4.62946547,59634.0,59633.0,0.6714]
[1617347618978,4.33946547,59634.0,59633.0,0.6714]
[1617347619180,4.37946547,59634.0,59633.0,0.6714]
[1617347619979,4.62946547,59634.0,59633.0,0.6714]
[1617347620179,4.24946547,59634.0,59633.0,0.6714]
[1617347620380,2.44492173,59634.0,59633.0,0.6714]
[1617347620584,2.34492173,59634.0,59633.0,0.6714]
[1617347621207,2.70946547,59634.0,59633.0,0.6714]
[1617347621608,3.57946547,59634.0,59633.0,0.6714]
[1617347622067,3.67946547,59634.0,59633.0,0.6714]
[1617347622267,3.72946547,59634.0,59633.0,0.6714]
[1617347622664,4.45946547,59634.0,59633.0,0.6714]
[1617347622863,3.72946547,59634.0,59633.0,0.6714]
[1617347623064,3.76946547,59634.0,59633.0,0.6714]
[1617347623662,4.34946547,59634.0,59633.0,0.6714]
[1617347623864,3.76946547,59634.0,59633.0,0.6714]
[1617347625066,3.8089042,59634.0,59633.0,0.6714]
[1617347625465,3.7189042,59634.0,59633.0,0.6714]
[1617347625674,3.9484042,59634.0,59633.0,0.6714]
[1617347625881,4.91468547,59634.0,59633.0,0.6714]
[1617347626272,4.67468547,59634.0,59633.0,0.6714]
[1617347626477,4.67468547,59634.0,59615.0,0.032]
[1617347626478,0.164,59620.0,59615.0,0.032]
[1617347626677,3.93645473,59616.0,59615.0,0.032]
[1617347626874,4.73301773,59616.0,59615.0,0.032]
[1617347627672,4.98472073,59616.0,59615.0,0.032]
[1617347627875,5.14772073,59616.0,59615.0,0.032]
[1617347628072,5.23772073,59616.0,59615.0,0.002]
[1617347628277,5.18772073,59616.0,59615.0,0.002]
[1617347629878,4.95643571,59616.0,59615.0,0.002]
[1617347630476,4.70075571,59616.0,59615.0,0.002]
[1617347631074,4.70147582,59616.0,59615.0,0.002]
[1617347631498,4.74147582,59616.0,59615.0,0.002]
[1617347631901,4.78092485,59616.0,59615.0,0.002]
[1617347632501,4.70147582,59616.0,59615.0,0.002]
[1617347633104,4.89593356,59616.0,59615.0,0.002]
[1617347633503,4.85647582,59616.0,59615.0,0.002]
[1617347634531,5.14647582,59616.0,59615.0,0.002]
[1617347635127,3.04,59615.0,59603.0,0.027]
[1617347635330,0.0052,59612.0,59603.0,0.03]
[1617347635529,0.38960024,59611.0,59603.0,0.032]
[1617347635727,0.251743,59607.0,59603.0,0.032]
[1617347635926,0.386563,59606.0,59603.0,0.032]
[1617347636130,0.1,59605.0,59603.0,0.032]
[1617347636329,3.426563,59604.0,59603.0,0.032]
[1617347636755,0.436563,59604.0,59603.0,0.032]
[1617347637022,0.386563,59604.0,59603.0,0.032]
[1617347637422,0.876563,59604.0,59603.0,0.032]
[1617347637621,1.128306,59604.0,59603.0,0.032]
[1617347637823,1.378306,59604.0,59603.0,0.032]
[1617347639227,1.428306,59604.0,59603.0,0.002]
[1617347639427,3.678306,59604.0,59603.0,0.002]
[1617347639623,3.731806,59604.0,59603.0,0.002]
[1617347640021,1.581806,59604.0,59603.0,0.002]
[1617347640428,2.211806,59604.0,59603.0,0.002]
[1617347640627,2.211806,59604.0,59603.0,0.032]
[1617347640628,0.788306,59604.0,59603.0,0.032]
[1617347640825,0.638306,59604.0,59603.0,0.032]
[1617347641632,0.38727466,59604.0,59603.0,0.032]
[1617347641827,0.00071166,59604.0,59603.0,0.032]
[1617347642438,0.00071166,59604.0,59603.0,1.032]
[1617347642643,0.00071166,59604.0,59603.0,1.832493]
[1617347642838,0.00071166,59604.0,59603.0,2.683603]
[1617347643232,0.00071166,59604.0,59603.0,3.183603]
[1617347643432,0.00071166,59604.0,59603.0,3.233603]
[1617347643630,0.00071166,59604.0,59603.0,3.56976273]
[1617347644027,0.00071166,59604.0,59603.0,3.73076273]
[1617347644432,0.00071166,59604.0,59603.0,3.98241573]
[1617347644626,0.00071166,59604.0,59603.0,4.16651424]
[1617347645034,1.0003,59627.0,59604.0,1.0]
[1617347645236,1.0003,59627.0,59626.0,0.03]
[1617347645438,0.386563,59627.0,59626.0,0.03]
[1617347645638,0.386563,59627.0,59626.0,0.1882516]
[1617347645831,0.45258221,59640.0,59626.0,0.03]
[1617347646034,0.386563,59633.0,59626.0,0.032]
[1617347646229,0.386563,59633.0,59632.0,0.03]
[1617347647254,0.58450897,59633.0,59632.0,0.03]
[1617347647855,0.58450897,59633.0,59626.0,0.002]
[1617347648062,0.58870897,59633.0,59620.0,0.002]
[1617347648261,0.005,59630.0,59620.0,0.004]
[1617347648853,0.005,59630.0,59629.0,0.03]
[1617347649055,0.391563,59630.0,59629.0,0.03]
[1617347649258,0.58450897,59630.0,59618.0,0.5]
[1617347649461,0.20214597,59630.0,59620.0,0.002]
[1617347649660,0.005,59627.0,59620.0,0.002]
[1617347650094,0.0042,59630.0,59621.0,0.386563]
[1617347650295,0.0042,59630.0,59629.0,0.03]
[1617347650491,0.390763,59630.0,59629.0,0.03]
[1617347650692,0.58450897,59630.0,59629.0,0.03]
[1617347651490,0.58429854,59630.0,59629.0,0.03]
[1617347651696,0.73429854,59630.0,59629.0,0.03]
[1617347651893,0.83429854,59630.0,59629.0,0.03]
[1617347652173,0.0048,59628.0,59626.0,0.03]
[1617347652372,0.57802879,59626.0,59615.0,0.002]
[1617347652620,0.54802879,59626.0,59625.0,0.03]
[1617347652819,0.93459179,59626.0,59625.0,0.032]
[1617347655436,0.93459179,59626.0,59625.0,0.08264027]
[1617347655835,0.93459179,59626.0,59625.0,0.032]
[1617347656437,1.27232733,59626.0,59625.0,0.032]
[1617347656638,1.07459179,59626.0,59625.0,0.032]
[1617347656836,1.27232733,59626.0,59625.0,0.032]
[1617347657034,0.93459179,59626.0,59625.0,0.032]
[1617347658665,1.13232733,59626.0,59625.0,0.032]
[1617347658861,1.29732733,59626.0,59625.0,0.032]
[1617347659869,1.29732733,59626.0,59625.0,0.002]
[1617347659870,1.34732733,59626.0,59625.0,0.002]
[1617347660269,2.68677733,59626.0,59625.0,0.002]
[1617347660691,2.93843933,59626.0,59625.0,0.002]
[1617347660889,3.30298307,59626.0,59625.0,0.002]
[1617347661087,4.71843933,59626.0,59625.0,0.002]
[1617347661294,5.18298307,59626.0,59625.0,0.002]
[1617347662489,5.20330412,59626.0,59625.0,0.002]
[1617347663105,5.36130412,59626.0,59625.0,0.002]
[1617347663500,3.58130412,59626.0,59625.0,0.002]
[1617347665302,3.57130412,59626.0,59625.0,0.002]
[1617347665741,3.49185412,59626.0,59625.0,0.002]
[1617347666143,3.94217125,59626.0,59625.0,0.002]
[1617347666735,3.47217125,59626.0,59625.0,0.002]
[1617347667218,2.05417125,59626.0,59625.0,0.002]
[1617347667416,1.85643571,59626.0,59625.0,0.002]
[1617347667620,1.54962751,59626.0,59620.0,0.18]
[1617347667826,0.52319081,59625.0,59620.0,0.182]
[1617347668036,0.01971935,59621.0,59620.0,0.182]
[1617347668266,0.386563,59621.0,59620.0,0.212]
[1617347669628,0.58429854,59621.0,59620.0,0.182]
[1617347670027,3.35206854,59621.0,59620.0,0.182]
[1617347670621,3.76661228,59621.0,59620.0,0.182]
[1617347670820,3.40206854,59621.0,59620.0,0.182]
[1617347671221,3.76661228,59621.0,59620.0,0.182]
[1617347671424,1.42661228,59621.0,59620.0,0.182]
[1617347671625,0.89893854,59621.0,59620.0,0.182]
[1617347671830,0.626708,59621.0,59620.0,0.182]
[1617347672025,1.526708,59621.0,59620.0,0.182]
[1617347672225,2.526708,59621.0,59620.0,0.207]
[1617347672425,0.386708,59621.0,59620.0,0.207]
[1617347672831,0.386708,59621.0,59620.0,0.177]
[1617347673026,1.43734301,59621.0,59620.0,0.177]
[1617347673229,1.94507855,59621.0,59620.0,0.177]
[1617347673424,0.88417149,59621.0,59620.0,0.177]
[1617347673828,0.69734301,59621.0,59620.0,0.177]
[1617347674028,1.75417149,59621.0,59620.0,0.177]
[1617347674230,0.57417149,59621.0,59620.0,0.177]
[1617347674624,0.38734301,59621.0,59620.0,0.177]
[1617347674825,0.57417149,59621.0,59620.0,0.177]
[1617347675030,0.38734301,59621.0,59620.0,0.177]
[1617347675428,0.57417149,59621.0,59620.0,0.177]
[1617347675625,1.05085449,59621.0,59620.0,0.177]
[1617347676032,1.87585449,59621.0,59620.0,0.177]
[1617347677231,1.04585449,59621.0,59620.0,0.177]
[1617347677636,0.86402601,59621.0,59620.0,0.177]
[1617347677832,1.04585449,59621.0,59620.0,0.177]
[1617347678033,2.45585449,59621.0,59620.0,0.177]
[1617347678437,1.13531117,59621.0,59620.0,0.177]
[1617347678633,0.95348269,59621.0,59620.0,0.177]
[1617347679060,1.64531117,59621.0,59620.0,0.177]
[1617347679261,1.38085449,59621.0,59620.0,0.177]
[1617347679664,0.63902601,59621.0,59620.0,0.207]
[1617347680462,18.55290532,59600.0,59597.0,1.0]
[1617347680663,18.55290532,59600.0,59599.0,0.03]
[1617347680664,18.85744906,59600.0,59599.0,0.03]
[1617347680865,18.85744906,59600.0,59599.0,1.2591271]
[1617347681061,18.85744906,59600.0,59599.0,1.032]
[1617347681262,18.49290532,59600.0,59599.0,1.186]
[1617347681689,18.49290532,59600.0,59599.0,2.266]
[1617347682134,18.85744906,59600.0,59599.0,2.266]
[1617347682732,18.49290532,59600.0,59599.0,1.686]
[1617347682932,18.85744906,59600.0,59599.0,1.686]
[1617347683539,18.85744906,59600.0,59599.0,1.186]
[1617347683733,18.49290532,59600.0,59599.0,1.186]
[1617347683937,18.49352521,59600.0,59599.0,1.186]
[1617347684134,18.80352521,59600.0,59599.0,1.186]
[1617347685532,18.80352521,59600.0,59599.0,1.032]
[1617347686738,18.98535369,59600.0,59599.0,1.032]
[1617347686943,18.80352521,59600.0,59599.0,1.032]
[1617347687544,18.80352521,59600.0,59599.0,0.032]
[1617347687748,18.98535369,59600.0,59599.0,0.032]
[1617347687947,19.34989743,59600.0,59599.0,0.032]
[1617347688544,18.98535369,59600.0,59599.0,0.032]
[1617347688745,19.34989743,59600.0,59599.0,0.032]
[1617347689144,18.98535369,59600.0,59599.0,0.032]
[1617347689368,19.73660543,59600.0,59599.0,0.032]
[1617347689567,19.34989743,59600.0,59599.0,0.032]
[1617347689765,19.34989743,59600.0,59599.0,1.032]
[1617347689966,19.16806895,59600.0,59599.0,1.032]
[1617347690370,18.80352521,59600.0,59599.0,1.032]
[1617347691372,18.49352521,59600.0,59599.0,1.032]
[1617347691569,18.85806895,59600.0,59599.0,1.032]
[1617347691772,18.49352521,59600.0,59599.0,1.032]
[1617347692793,18.49352521,59600.0,59599.0,1.283693]
[1617347696017,18.49352521,59600.0,59599.0,1.523693]
[1617347697022,18.49352521,59600.0,59599.0,1.868693]
[1617347697229,18.49352521,59600.0,59599.0,1.928693]
[1617347697428,18.24392521,59600.0,59599.0,1.928693]
[1617347697824,18.24392521,59600.0,59599.0,1.918693]
[1617347698431,18.24392521,59600.0,59599.0,1.934693]
[1617347698826,18.24392521,59600.0,59599.0,1.544693]
[1617347699029,18.60846895,59600.0,59599.0,1.544693]
[1617347699425,18.60846895,59600.0,59599.0,1.304693]
[1617347699426,18.24392521,59600.0,59599.0,1.304693]
[1617347699628,18.24392521,59600.0,59599.0,0.304693]
[1617347700060,18.60846895,59600.0,59599.0,0.304693]
[1617347700458,18.24392521,59600.0,59599.0,1.304693]
[1617347700661,18.24392521,59600.0,59599.0,1.509693]
[1617347700865,18.24392521,59600.0,59599.0,1.559693]
[1617347701064,18.24392521,59600.0,59599.0,1.839693]
[1617347701268,18.24392521,59600.0,59599.0,2.610843]
[1617347702067,17.82212521,59600.0,59599.0,2.610843]
[1617347702263,17.55869654,59600.0,59599.0,3.71601273]
[1617347702472,17.52371654,59600.0,59599.0,4.07117797]
[1617347702674,17.52371654,59600.0,59599.0,4.32117797]
[1617347703073,17.52371654,59600.0,59599.0,4.30017797]
[1617347703475,17.52371654,59600.0,59599.0,3.92701273]
[1617347704071,17.52371654,59600.0,59599.0,3.67701273]
[1617347704277,17.52371654,59600.0,59599.0,2.28701273]
[1617347704472,17.52371654,59600.0,59599.0,3.28993635]
[1617347704668,17.52371654,59600.0,59599.0,3.29993635]
[1617347704868,17.52371654,59600.0,59599.0,2.29993635]
[1617347705104,17.52371654,59600.0,59599.0,3.29993635]
[1617347705504,17.52371654,59600.0,59599.0,3.98520273]
[1617347705702,17.52371654,59600.0,59599.0,2.95222273]
[1617347705909,17.52371654,59600.0,59599.0,2.94514875]
[1617347706106,17.52371654,59600.0,59599.0,3.95514875]
[1617347706309,17.52371654,59600.0,59599.0,3.95222273]
[1617347706507,17.52371654,59600.0,59599.0,3.99222273]
[1617347706703,17.52371654,59600.0,59599.0,2.79924273]
[1617347706919,17.52371654,59600.0,59599.0,2.26501273]
[1617347707114,17.52371654,59600.0,59599.0,2.06001273]
[1617347707309,17.52371654,59600.0,59599.0,0.954843]
[1617347707509,17.48553209,59600.0,59599.0,0.964843]
[1617347707712,17.48553209,59600.0,59599.0,1.245843]
[1617347708716,17.48553209,59600.0,59599.0,1.723463]
[1617347708917,17.48553209,59600.0,59599.0,1.883793]
[1617347709116,17.48553209,59600.0,59599.0,1.783793]
[1617347709315,17.48553209,59600.0,59599.0,1.98896273]
[1617347709715,17.48553209,59600.0,59599.0,1.88896273]
[1617347710113,17.48553209,59600.0,59599.0,1.78778273]
[1617347710340,17.48553209,59600.0,59599.0,1.682613]
[1617347711142,17.48553209,59600.0,59599.0,1.782613]
[1617347711542,17.48553209,59600.0,59599.0,1.682613]
[1617347711947,17.48553209,59600.0,59599.0,1.814523]
[1617347712225,17.48553209,59600.0,59599.0,1.833523]
[1617347713068,17.48553209,59600.0,59599.0,1.933523]
[1617347713671,17.48553209,59600.0,59599.0,1.51522187]
[1617347713867,17.48553209,59600.0,59599.0,1.54722187]
[1617347714275,17.48553209,59600.0,59599.0,1.18722187]
[1617347714276,17.66736057,59600.0,59599.0,1.18722187]
[1617347714476,17.66736057,59600.0,59599.0,0.80960187]
[1617347714878,17.48553209,59600.0,59599.0,0.96535887]
[1617347715069,17.48553209,59600.0,59599.0,1.30035887]
[1617347715907,17.09175588,59600.0,59599.0,2.86275887]
[1617347716110,17.09175588,59600.0,59599.0,4.63754751]
[1617347716301,17.04786378,59600.0,59599.0,4.74271724]
[1617347716504,16.93323089,59600.0,59599.0,4.78564987]
[1617347716699,16.93323089,59600.0,59599.0,4.94364987]
[1617347716904,16.93323089,59600.0,59599.0,6.44071724]
[1617347717100,16.6595623,59600.0,59599.0,6.085552]
[1617347717702,16.41574519,59600.0,59599.0,6.085552]
[1617347717901,16.41574519,59600.0,59599.0,6.44071724]
[1617347718095,16.37066752,59600.0,59599.0,6.44071724]
[1617347718327,16.37066752,59600.0,59599.0,6.74071724]
[1617347718518,16.37066752,59600.0,59599.0,5.49071724]
[1617347718721,16.37066752,59600.0,59599.0,5.19071724]
[1617347719120,16.37066752,59600.0,59599.0,4.19071724]
[1617347719321,16.37066752,59600.0,59599.0,5.19071724]
[1617347719522,16.37066752,59600.0,59599.0,4.94071724]
[1617347720837,16.37066752,59600.0,59599.0,5.24071724]
[1617347721443,16.37066752,59600.0,59599.0,4.85071724]
[1617347721639,16.37066752,59600.0,59599.0,4.495552]
[1617347722640,16.36866752,59600.0,59599.0,4.735552]
[1617347722840,16.36866752,59600.0,59599.0,4.835552]
[1617347723241,16.36866752,59600.0,59599.0,3.835552]
[1617347723467,16.36866752,59600.0,59599.0,3.337552]
[1617347723665,16.36866752,59600.0,59599.0,3.432682]
[1617347724665,16.36866752,59600.0,59599.0,3.772682]
[1617347724872,16.36866752,59600.0,59599.0,3.77562072]
[1617347725469,16.36866752,59600.0,59599.0,3.93962072]
[1617347726097,16.36866752,59600.0,59599.0,3.77562072]
[1617347726299,16.36366752,59600.0,59599.0,3.49137732]
[1617347726498,16.36366752,59600.0,59599.0,3.41086732]
[1617347727369,16.36366752,59600.0,59599.0,4.6579286]
[1617347727564,16.36366752,59600.0,59599.0,4.01309384]
[1617347727767,16.36366752,59600.0,59599.0,4.79454621]
[1617347727963,16.36366752,59600.0,59599.0,3.89971145]
[1617347728163,16.36366752,59600.0,59599.0,3.54454621]
[1617347728373,16.36366752,59600.0,59599.0,3.5474847]
[1617347729371,16.36366752,59600.0,59599.0,4.54454621]
[1617347729572,16.36366752,59600.0,59599.0,5.02790145]
[1617347729768,14.98834798,59600.0,59599.0,6.27790145]
[1617347729969,14.75634798,59600.0,59599.0,6.14128384]
[1617347730366,14.54034798,59600.0,59599.0,5.7861186]
[1617347730571,14.54034798,59600.0,59599.0,6.14128384]
[1617347730572,14.20492498,59600.0,59599.0,6.14128384]
[1617347730768,14.20492498,59600.0,59599.0,6.39128384]
[1617347731368,13.86450198,59600.0,59599.0,6.0361186]
[1617347731775,13.86450198,59600.0,59599.0,3.5361186]
[1617347731977,13.86450198,59600.0,59599.0,3.76309384]
[1617347732178,0.00061989,59600.0,59599.0,3.76309384]
[1617347732377,0.00061989,59600.0,59599.0,3.80980184]
[1617347732578,0.54802879,59626.0,59599.0,5.03698184]
[1617347732783,0.54802879,59626.0,59625.0,0.03]
[1617347732974,0.54802879,59626.0,59625.0,0.70315]
[1617347733176,0.54802879,59626.0,59625.0,1.089858]
[1617347735974,0.54802879,59626.0,59625.0,0.70315]
[1617347736381,0.55098765,59626.0,59625.0,0.70315]
[1617347738200,0.73281613,59626.0,59625.0,0.70315]
[1617347738406,0.88985727,59626.0,59625.0,0.70315]
[1617347738603,1.52156527,59626.0,59625.0,0.70315]
[1617347738804,1.60150527,59626.0,59625.0,0.67315]
[1617347739225,2.20150527,59626.0,59625.0,0.67315]
[1617347739424,1.65222004,59626.0,59625.0,0.67315]
[1617347739628,1.65222004,59626.0,59625.0,0.72347274]
[1617347739833,1.90384804,59626.0,59625.0,0.67315]
[1617347740023,1.94313327,59626.0,59625.0,0.67315]
[1617347740231,3.27313327,59626.0,59625.0,0.67315]
[1617347740625,2.03325471,59626.0,59625.0,0.67315]
[1617347741028,1.99379878,59626.0,59625.0,0.67315]
[1617347741852,1.99379878,59626.0,59625.0,0.70315]
[1617347742049,1.99379878,59626.0,59625.0,0.67315]
[1617347742297,3.56379878,59626.0,59625.0,0.67315]
[1617347742499,1.99379878,59626.0,59625.0,0.67315]
[1617347742702,2.09379878,59626.0,59625.0,0.67315]
[1617347742901,2.13323374,59626.0,59625.0,0.67315]
[1617347743303,3.75323374,59626.0,59625.0,0.67315]
[1617347744496,2.13323374,59626.0,59625.0,0.67315]
[1617347745298,1.95140526,59626.0,59625.0,0.67315]
[1617347745503,1.87146526,59626.0,59625.0,0.70315]
[1617347745902,2.01385878,59626.0,59625.0,0.70315]
[1617347746102,1.8320303,59626.0,59625.0,0.70315]
[1617347746303,1.9820303,59626.0,59625.0,0.70315]
[1617347746499,1.91385878,59626.0,59625.0,0.70315]
[1617347746701,1.7320303,59626.0,59625.0,0.70315]
[1617347746901,1.91385878,59626.0,59625.0,0.70315]
[1617347747102,1.7320303,59626.0,59625.0,0.70315]
[1617347747303,1.6820303,59626.0,59625.0,0.70315]
[1617347747507,1.3170303,59626.0,59625.0,0.70315]
[1617347747902,1.66385878,59626.0,59625.0,0.70315]
[1617347748102,1.4820303,59626.0,59625.0,0.70315]
[1617347748510,2.8720303,59626.0,59625.0,0.60315]
[1617347748706,1.4420303,59626.0,59625.0,0.60515]
[1617347748903,1.3520303,59626.0,59625.0,0.60515]
[1617347749105,1.35498595,59626.0,59625.0,0.60515]
[1617347749308,1.3920303,59626.0,59625.0,0.60515]
[1617347749752,1.3920303,59626.0,59625.0,0.60315]
[1617347749949,1.6670303,59626.0,59625.0,0.60315]
[1617347750150,1.84885878,59626.0,59625.0,0.60315]
[1617347750352,1.57385878,59626.0,59625.0,0.60315]
[1617347750550,1.3870303,59626.0,59625.0,0.60315]
[1617347750753,1.3870303,59626.0,59625.0,0.60515]
[1617347750951,1.56885878,59626.0,59625.0,0.60315]
[1617347751149,1.3870303,59626.0,59625.0,0.60315]
[1617347751349,1.6820303,59626.0,59625.0,0.60315]
[1617347751549,1.86385878,59626.0,59625.0,0.60315]
[1617347751960,1.91385878,59626.0,59625.0,0.60315]
[1617347752156,3.55385878,59626.0,59625.0,0.60315]
[1617347752354,3.50385878,59626.0,59625.0,0.60315]
[1617347752553,3.50385878,59626.0,59625.0,0.57315]
[1617347752752,1.86385878,59626.0,59625.0,0.57515]
[1617347753154,2.50385878,59626.0,59625.0,0.57515]
[1617347753559,1.86385878,59626.0,59625.0,0.57515]
[1617347753753,1.86385878,59626.0,59625.0,0.60515]
[1617347754154,2.52385878,59626.0,59625.0,0.60515]
[1617347754557,1.86385878,59626.0,59625.0,0.60515]
[1617347754754,1.56885878,59626.0,59625.0,0.60515]
[1617347755170,2.44885878,59626.0,59625.0,0.60515]
[1617347755573,1.56885878,59626.0,59625.0,0.60515]
[1617347755972,1.61885878,59626.0,59625.0,0.60515]
[1617347756175,3.33885878,59626.0,59625.0,0.57515]
[1617347756372,1.92885878,59626.0,59625.0,0.57515]
[1617347756574,1.4920303,59626.0,59625.0,0.57515]
[1617347756773,1.1820303,59626.0,59625.0,0.57515]
[1617347757454,1.1820303,59626.0,59625.0,0.60515]
[1617347759056,2.71885878,59626.0,59625.0,0.60515]
[1617347759256,3.02885878,59626.0,59625.0,0.60515]
[1617347759654,1.84885878,59626.0,59625.0,0.60515]
[1617347759856,1.84885878,59626.0,59625.0,0.57515]
[1617347760055,2.93885878,59626.0,59625.0,0.57515]
[1617347760258,3.10085878,59626.0,59625.0,0.57515]
[1617347760859,2.71385878,59626.0,59625.0,0.57515]
[1617347761056,2.84885878,59626.0,59625.0,0.57515]
[1617347761253,2.93885878,59626.0,59625.0,0.57515]
[1617347761455,3.06385878,59626.0,59625.0,0.57515]
[1617347761659,2.92885878,59626.0,59625.0,0.57515]
[1617347761859,3.10385878,59626.0,59625.0,0.57515]
[1617347762057,3.21892878,59626.0,59625.0,0.57515]
[1617347762659,3.70892878,59626.0,59625.0,0.57515]
[1617347762861,4.47347252,59626.0,59625.0,0.57515]
[1617347763062,6.51347252,59626.0,59625.0,0.57515]